[Event "Titled Tuesday Blitz January 10 Early 2023"]
[White "Shipov, Sergei"]
[Black "Ronka, Erik"]
[WhiteFideId "4113624"]
[BlackFideId "505080"]
[WhiteElo "2541"]
[BlackElo "2276"]
[Result "1-0"]
[Round "02"]
[TimeControl "180+2"]
[Date "2023.01.10"]
[WhiteClock "0:00:39"]
[BlackClock "0:00:06"]

1. d4 {[%clk 0:03:00]}  d5 {[%clk 0:02:57]} 2. c4 {[%clk 0:03:00]}  c6 {[%clk 0:02:58]} 3. Nc3 {[%clk 0:02:59]}  Nf6 {[%clk 0:02:58]} 4. Nf3 {[%clk 0:02:59]}  e6 {[%clk 0:02:58]} 5. e3 {[%clk 0:02:59]}  Nbd7 {[%clk 0:02:58]} 6. Qc2 {[%clk 0:02:59]}  Bd6 {[%clk 0:02:58]} 7. Bd2 {[%clk 0:02:59]}  O-O {[%clk 0:02:57]} 8. O-O-O {[%clk 0:02:59]}  b5 {[%clk 0:02:50]} 9. e4 {[%clk 0:02:58]}  b4 {[%clk 0:02:29]} 10. e5 {[%clk 0:02:58]}  bxc3 {[%clk 0:02:29]} 11. Bxc3 {[%clk 0:02:58]}  Be7 {[%clk 0:02:06]} 12. exf6 {[%clk 0:02:57]}  Nxf6 {[%clk 0:02:02]} 13. c5 {[%clk 0:02:50]}  a5 {[%clk 0:01:59]} 14. Ne5 {[%clk 0:02:46]}  Qc7 {[%clk 0:01:53]} 15. Bd3 {[%clk 0:02:45]}  Ba6 {[%clk 0:01:52]} 16. Rhe1 {[%clk 0:02:33]}  Bxd3 {[%clk 0:01:51]} 17. Rxd3 {[%clk 0:02:33]}  Nd7 {[%clk 0:01:41]} 18. Rh3 {[%clk 0:02:27]}  g6 {[%clk 0:01:11]} 19. Qd2 {[%clk 0:02:25]}  Nxe5 {[%clk 0:01:09]} 20. Qh6 {[%clk 0:02:15]}  Bg5+ {[%clk 0:00:45]} 21. Qxg5 {[%clk 0:02:14]}  Nc4 {[%clk 0:00:29]} 22. b3 {[%clk 0:01:15]}  Na3 {[%clk 0:00:25]} 23. Bb2 {[%clk 0:01:10]}  Nb5 {[%clk 0:00:20]} 24. a4 {[%clk 0:01:09]}  Na7 {[%clk 0:00:20]} 25. Qh6 {[%clk 0:01:09]}  f6 {[%clk 0:00:20]} 26. Rxe6 {[%clk 0:01:09]}  Rae8 {[%clk 0:00:17]} 27. Rhe3 {[%clk 0:01:09]}  Rxe6 {[%clk 0:00:17]} 28. Rxe6 {[%clk 0:01:09]}  Qb7 {[%clk 0:00:16]} 29. Kc2 {[%clk 0:01:05]}  Nc8 {[%clk 0:00:10]} 30. Qe3 {[%clk 0:00:59]}  Kg7 {[%clk 0:00:09]} 31. Bc3 {[%clk 0:00:58]}  Rf7 {[%clk 0:00:09]} 32. Bxa5 {[%clk 0:00:57]}  Ne7 {[%clk 0:00:09]} 33. g4 {[%clk 0:00:56]}  g5 {[%clk 0:00:09]} 34. f4 {[%clk 0:00:51]}  gxf4 {[%clk 0:00:07]} 35. Qxf4 {[%clk 0:00:51]}  Ng6 {[%clk 0:00:08]} 36. Qe3 {[%clk 0:00:51]}  Qc8 {[%clk 0:00:06]} 37. Bd2 {[%clk 0:00:49]}  Nf4 {[%clk 0:00:06]} 38. Re8 {[%clk 0:00:43]}  Qd7 {[%clk 0:00:06]} 39. h4 {[%clk 0:00:39]}  Ng6 {[%clk 0:00:06]} 40. Qh6# {[%clk 0:00:39]} 1-0


[Site "https://www.chess.com"]

[Event "Titled Tuesday Blitz January 10 Early 2023"]
[White "Garakov, Mikhael"]
[Black "Tan, Zhongyi"]
[WhiteFideId "4169034"]
[BlackFideId "8603642"]
[WhiteElo "2447"]
[BlackElo "2517"]
[Result "1-0"]
[Round "02"]
[TimeControl "180+2"]
[Date "2023.01.10"]
[WhiteClock "0:00:09"]
[BlackClock "0:00:03"]

1. e4 {[%clk 0:03:00]}  c5 {[%clk 0:02:58]} 2. Nf3 {[%clk 0:03:00]}  d6 {[%clk 0:02:58]} 3. d4 {[%clk 0:02:59]}  cxd4 {[%clk 0:02:58]} 4. Nxd4 {[%clk 0:02:59]}  Nf6 {[%clk 0:02:59]} 5. Nc3 {[%clk 0:02:59]}  g6 {[%clk 0:02:59]} 6. Be3 {[%clk 0:02:58]}  Bg7 {[%clk 0:02:59]} 7. f3 {[%clk 0:02:58]}  O-O {[%clk 0:02:59]} 8. Qd2 {[%clk 0:02:58]}  Nc6 {[%clk 0:02:59]} 9. Bc4 {[%clk 0:02:58]}  Bd7 {[%clk 0:02:53]} 10. h4 {[%clk 0:02:57]}  h5 {[%clk 0:02:51]} 11. O-O-O {[%clk 0:02:53]}  Ne5 {[%clk 0:02:51]} 12. Bb3 {[%clk 0:02:53]}  Rc8 {[%clk 0:02:51]} 13. Kb1 {[%clk 0:02:51]}  Nc4 {[%clk 0:02:46]} 14. Bxc4 {[%clk 0:02:50]}  Rxc4 {[%clk 0:02:47]} 15. b3 {[%clk 0:02:50]}  Rc8 {[%clk 0:02:45]} 16. Nde2 {[%clk 0:02:50]}  b5 {[%clk 0:02:36]} 17. Bd4 {[%clk 0:02:50]}  Bc6 {[%clk 0:01:41]} 18. Nd5 {[%clk 0:02:26]}  Bxd5 {[%clk 0:01:39]} 19. exd5 {[%clk 0:02:26]}  Qc7 {[%clk 0:01:20]} 20. g4 {[%clk 0:02:14]}  Nxd5 {[%clk 0:01:19]} 21. Bxg7 {[%clk 0:02:08]}  Kxg7 {[%clk 0:01:19]} 22. gxh5 {[%clk 0:02:00]}  Nc3+ {[%clk 0:01:13]} 23. Nxc3 {[%clk 0:02:00]}  Qxc3 {[%clk 0:01:14]} 24. Qg2 {[%clk 0:01:58]}  Qf6 {[%clk 0:00:47]} 25. hxg6 {[%clk 0:01:56]}  fxg6 {[%clk 0:00:47]} 26. h5 {[%clk 0:01:56]}  Rh8 {[%clk 0:00:45]} 27. hxg6 {[%clk 0:01:48]}  Rcf8 {[%clk 0:00:24]} 28. Rh7+ {[%clk 0:01:43]}  Rxh7 {[%clk 0:00:16]} 29. gxh7+ {[%clk 0:01:41]}  Kh8 {[%clk 0:00:17]} 30. Rg1 {[%clk 0:01:25]}  Qf7 {[%clk 0:00:17]} 31. f4 {[%clk 0:01:12]}  a5 {[%clk 0:00:16]} 32. f5 {[%clk 0:01:10]}  a4 {[%clk 0:00:16]} 33. Kb2 {[%clk 0:00:12]}  Qf6+ {[%clk 0:00:14]} 34. c3 {[%clk 0:00:12]}  Qf7 {[%clk 0:00:14]} 35. Qg8+ {[%clk 0:00:08]}  Rxg8 {[%clk 0:00:13]} 36. hxg8=Q+ {[%clk 0:00:09]}  Qxg8 {[%clk 0:00:13]} 37. Rxg8+ {[%clk 0:00:10]}  Kxg8 {[%clk 0:00:13]} 38. c4 {[%clk 0:00:07]}  bxc4 {[%clk 0:00:05]} 39. bxa4 {[%clk 0:00:08]}  Kf7 {[%clk 0:00:05]} 40. a5 {[%clk 0:00:08]}  e5 {[%clk 0:00:03]} 41. a6 {[%clk 0:00:08]}  e4 {[%clk 0:00:02]} 42. a7 {[%clk 0:00:08]}  e3 {[%clk 0:00:03]} 43. a8=Q {[%clk 0:00:09]}  e2 {[%clk 0:00:03]} 44. Qe4 {[%clk 0:00:09]} 1-0


[Site "https://www.chess.com"]

[Event "Titled Tuesday Blitz January 10 Early 2023"]
[White "Subelj, Jan"]
[Black "Gracia Alvarez, Gerardo Antonio"]
[WhiteFideId "14618583"]
[BlackFideId "5109124"]
[WhiteElo "2513"]
[BlackElo "2238"]
[Result "1/2-1/2"]
[Round "02"]
[TimeControl "180+2"]
[Date "2023.01.10"]
[WhiteClock "0:00:31"]
[BlackClock "0:00:05"]

1. a3 {[%clk 0:03:00]}  e5 {[%clk 0:02:54]} 2. e4 {[%clk 0:02:58]}  Nf6 {[%clk 0:02:53]} 3. Nc3 {[%clk 0:02:58]}  d5 {[%clk 0:02:51]} 4. exd5 {[%clk 0:02:56]}  Nxd5 {[%clk 0:02:52]} 5. Nf3 {[%clk 0:02:56]}  Nxc3 {[%clk 0:02:49]} 6. bxc3 {[%clk 0:02:55]}  Bd6 {[%clk 0:02:49]} 7. d4 {[%clk 0:02:51]}  e4 {[%clk 0:02:42]} 8. Nd2 {[%clk 0:02:48]}  O-O {[%clk 0:02:43]} 9. Nc4 {[%clk 0:02:44]}  Qf6 {[%clk 0:02:34]} 10. g3 {[%clk 0:02:34]}  Qg6 {[%clk 0:02:19]} 11. Bg2 {[%clk 0:02:27]}  Bg4 {[%clk 0:02:19]} 12. Qd2 {[%clk 0:02:26]}  Bf3 {[%clk 0:02:17]} 13. O-O {[%clk 0:02:26]}  Nd7 {[%clk 0:02:10]} 14. Qg5 {[%clk 0:02:20]}  Bxg2 {[%clk 0:02:08]} 15. Qxg6 {[%clk 0:02:07]}  hxg6 {[%clk 0:02:07]} 16. Kxg2 {[%clk 0:02:08]}  Rfe8 {[%clk 0:02:06]} 17. a4 {[%clk 0:02:06]}  f5 {[%clk 0:02:01]} 18. a5 {[%clk 0:02:00]}  b6 {[%clk 0:01:55]} 19. axb6 {[%clk 0:01:52]}  axb6 {[%clk 0:01:54]} 20. Bg5 {[%clk 0:01:50]}  Kf7 {[%clk 0:01:49]} 21. f3 {[%clk 0:01:41]}  exf3+ {[%clk 0:01:39]} 22. Kxf3 {[%clk 0:01:42]}  b5 {[%clk 0:00:54]} 23. Ne3 {[%clk 0:01:35]}  Nf6 {[%clk 0:00:49]} 24. Bxf6 {[%clk 0:01:34]}  gxf6 {[%clk 0:00:48]} 25. c4 {[%clk 0:01:33]}  bxc4 {[%clk 0:00:41]} 26. Nxc4 {[%clk 0:01:34]}  g5 {[%clk 0:00:33]} 27. Rxa8 {[%clk 0:01:20]}  Rxa8 {[%clk 0:00:32]} 28. Ke2 {[%clk 0:01:20]}  Ke6 {[%clk 0:00:24]} 29. Kd3 {[%clk 0:01:18]}  Rh8 {[%clk 0:00:23]} 30. Rf2 {[%clk 0:01:18]}  f4 {[%clk 0:00:22]} 31. Nxd6 {[%clk 0:01:15]}  cxd6 {[%clk 0:00:22]} 32. gxf4 {[%clk 0:01:16]}  gxf4 {[%clk 0:00:21]} 33. Ke4 {[%clk 0:01:15]}  Rh4 {[%clk 0:00:21]} 34. d5+ {[%clk 0:01:15]}  Kf7 {[%clk 0:00:19]} 35. c4 {[%clk 0:01:14]}  Kg6 {[%clk 0:00:18]} 36. Rg2+ {[%clk 0:01:01]}  Kf7 {[%clk 0:00:18]} 37. Rc2 {[%clk 0:00:57]}  Kg6 {[%clk 0:00:17]} 38. c5 {[%clk 0:00:57]}  dxc5 {[%clk 0:00:17]} 39. d6 {[%clk 0:00:57]}  f3+ {[%clk 0:00:14]} 40. Kd5 {[%clk 0:00:54]}  Rd4+ {[%clk 0:00:09]} 41. Kxc5 {[%clk 0:00:54]}  Rd1 {[%clk 0:00:08]} 42. Rf2 {[%clk 0:00:52]}  Rd3 {[%clk 0:00:06]} 43. Kc6 {[%clk 0:00:49]}  Kf7 {[%clk 0:00:06]} 44. h4 {[%clk 0:00:46]}  Ke6 {[%clk 0:00:06]} 45. Kc5 {[%clk 0:00:42]}  Rxd6 {[%clk 0:00:06]} 46. Rxf3 {[%clk 0:00:42]}  Rd5+ {[%clk 0:00:06]} 47. Kc4 {[%clk 0:00:42]}  Rh5 {[%clk 0:00:06]} 48. Rf4 {[%clk 0:00:42]}  Ke5 {[%clk 0:00:06]} 49. Rd4 {[%clk 0:00:43]}  f5 {[%clk 0:00:06]} 50. Kc5 {[%clk 0:00:42]}  Kf6 {[%clk 0:00:06]} 51. Kd6 {[%clk 0:00:40]}  Kg6 {[%clk 0:00:05]} 52. Ke5 {[%clk 0:00:37]}  Rh8 {[%clk 0:00:04]} 53. Rd6+ {[%clk 0:00:31]}  Kh5 {[%clk 0:00:03]} 54. Kxf5 {[%clk 0:00:32]}  Kxh4 {[%clk 0:00:03]} 55. Rd1 {[%clk 0:00:31]}  Kg3 {[%clk 0:00:03]} 56. Rg1+ {[%clk 0:00:30]}  Kf3 {[%clk 0:00:03]} 57. Rf1+ {[%clk 0:00:30]}  Ke2 {[%clk 0:00:04]} 58. Rf4 {[%clk 0:00:30]}  Rf8+ {[%clk 0:00:04]} 59. Kg4 {[%clk 0:00:30]}  Rxf4+ {[%clk 0:00:05]} 60. Kxf4 {[%clk 0:00:31]} 1/2-1/2


[Site "https://www.chess.com"]

[Event "Titled Tuesday Blitz January 10 Early 2023"]
[White "marik_spb"]
[Black "Korchmar, Vasiliy"]
[BlackFideId "24131750"]
[WhiteElo "2432"]
[BlackElo "2438"]
[Result "0-1"]
[Round "02"]
[TimeControl "180+2"]
[Date "2023.01.10"]
[WhiteClock "0:00:05"]
[BlackClock "0:00:47"]

1. e4 {[%clk 0:02:47]}  c5 {[%clk 0:02:58]} 2. c3 {[%clk 0:02:45]}  d5 {[%clk 0:02:57]} 3. exd5 {[%clk 0:02:46]}  Qxd5 {[%clk 0:02:57]} 4. d4 {[%clk 0:02:46]}  Nf6 {[%clk 0:02:57]} 5. Nf3 {[%clk 0:02:47]}  e6 {[%clk 0:02:55]} 6. Be3 {[%clk 0:02:47]}  Nc6 {[%clk 0:02:49]} 7. dxc5 {[%clk 0:02:46]}  Qxd1+ {[%clk 0:02:48]} 8. Kxd1 {[%clk 0:02:47]}  Ng4 {[%clk 0:02:48]} 9. b4 {[%clk 0:02:45]}  Nxe3+ {[%clk 0:02:48]} 10. fxe3 {[%clk 0:02:45]}  a5 {[%clk 0:02:46]} 11. Bb5 {[%clk 0:02:45]}  Bd7 {[%clk 0:02:47]} 12. Nbd2 {[%clk 0:02:25]}  axb4 {[%clk 0:02:45]} 13. Bxc6 {[%clk 0:02:26]}  Bxc6 {[%clk 0:02:39]} 14. cxb4 {[%clk 0:02:26]}  b6 {[%clk 0:02:32]} 15. Nb3 {[%clk 0:02:11]}  bxc5 {[%clk 0:02:24]} 16. bxc5 {[%clk 0:02:06]}  Bd5 {[%clk 0:02:22]} 17. Kd2 {[%clk 0:01:47]}  Be7 {[%clk 0:02:17]} 18. Nfd4 {[%clk 0:01:42]}  O-O {[%clk 0:02:14]} 19. Rhc1 {[%clk 0:00:48]}  Rfc8 {[%clk 0:02:12]} 20. g3 {[%clk 0:00:47]}  g6 {[%clk 0:02:03]} 21. Kd3 {[%clk 0:00:39]}  f5 {[%clk 0:01:50]} 22. a4 {[%clk 0:00:29]}  e5 {[%clk 0:01:45]} 23. Nd2 {[%clk 0:00:15]}  exd4 {[%clk 0:01:43]} 24. exd4 {[%clk 0:00:16]}  Bf6 {[%clk 0:01:38]} 25. Nc4 {[%clk 0:00:15]}  Be4+ {[%clk 0:01:33]} 26. Ke3 {[%clk 0:00:14]}  Bg5+ {[%clk 0:01:34]} 27. Kf2 {[%clk 0:00:12]}  Bxc1 {[%clk 0:01:35]} 28. Rxc1 {[%clk 0:00:13]}  Rxa4 {[%clk 0:01:35]} 29. Nb6 {[%clk 0:00:12]}  Ra2+ {[%clk 0:01:35]} 30. Ke3 {[%clk 0:00:13]}  Re8 {[%clk 0:01:33]} 31. Kf4 {[%clk 0:00:13]}  h6 {[%clk 0:01:32]} 32. Nd7 {[%clk 0:00:07]}  g5+ {[%clk 0:01:00]} 33. Ke3 {[%clk 0:00:07]}  Bc6+ {[%clk 0:00:57]} 34. Ne5 {[%clk 0:00:07]}  Rxh2 {[%clk 0:00:57]} 35. Kd3 {[%clk 0:00:06]}  Be4+ {[%clk 0:00:55]} 36. Kc4 {[%clk 0:00:06]}  Rc2+ {[%clk 0:00:55]} 37. Rxc2 {[%clk 0:00:07]}  Bxc2 {[%clk 0:00:56]} 38. c6 {[%clk 0:00:07]}  Ba4 {[%clk 0:00:48]} 39. Kc5 {[%clk 0:00:06]}  Rxe5+ {[%clk 0:00:45]} 40. dxe5 {[%clk 0:00:06]}  Kf7 {[%clk 0:00:44]} 41. Kd6 {[%clk 0:00:02]}  Bxc6 {[%clk 0:00:43]} 42. e6+ {[%clk 0:00:02]}  Kf6 {[%clk 0:00:42]} 43. Kxc6 {[%clk 0:00:02]}  Kxe6 {[%clk 0:00:43]} 44. Kc5 {[%clk 0:00:03]}  Ke5 {[%clk 0:00:43]} 45. Kc4 {[%clk 0:00:03]}  Ke4 {[%clk 0:00:44]} 46. Kc3 {[%clk 0:00:04]}  g4 {[%clk 0:00:44]} 47. Kd2 {[%clk 0:00:04]}  Kf3 {[%clk 0:00:45]} 48. Ke1 {[%clk 0:00:04]}  Kxg3 {[%clk 0:00:46]} 49. Kf1 {[%clk 0:00:05]}  Kh2 {[%clk 0:00:46]} 50. Kf2 {[%clk 0:00:05]}  g3+ {[%clk 0:00:47]} 0-1


[Site "https://www.chess.com"]

[Event "Titled Tuesday Blitz January 10 Early 2023"]
[White "Kukelko, Alexey"]
[Black "Bashirli, Saadat"]
[WhiteFideId "14153084"]
[BlackFideId "13429990"]
[WhiteElo "2311"]
[BlackElo "1571"]
[Result "1-0"]
[Round "02"]
[TimeControl "180+2"]
[Date "2023.01.10"]
[WhiteClock "0:00:55"]
[BlackClock "0:01:15"]

1. e4 {[%clk 0:03:00]}  c5 {[%clk 0:02:59]} 2. Ne2 {[%clk 0:02:58]}  g6 {[%clk 0:02:58]} 3. Nbc3 {[%clk 0:02:57]}  Bg7 {[%clk 0:02:57]} 4. d4 {[%clk 0:02:58]}  cxd4 {[%clk 0:02:55]} 5. Nxd4 {[%clk 0:02:59]}  Nc6 {[%clk 0:02:55]} 6. Be3 {[%clk 0:02:56]}  Nf6 {[%clk 0:02:55]} 7. Nxc6 {[%clk 0:02:56]}  bxc6 {[%clk 0:02:53]} 8. e5 {[%clk 0:02:56]}  Ng8 {[%clk 0:02:50]} 9. Bd4 {[%clk 0:02:56]}  Qa5 {[%clk 0:02:50]} 10. f4 {[%clk 0:02:55]}  f6 {[%clk 0:02:49]} 11. Qd2 {[%clk 0:02:56]}  fxe5 {[%clk 0:02:46]} 12. fxe5 {[%clk 0:02:56]}  Bxe5 {[%clk 0:02:46]} 13. Qg5 {[%clk 0:02:57]}  d6 {[%clk 0:02:38]} 14. Bxe5 {[%clk 0:02:56]}  Qxe5+ {[%clk 0:02:37]} 15. Qxe5 {[%clk 0:02:57]}  dxe5 {[%clk 0:02:38]} 16. O-O-O {[%clk 0:02:55]}  Bg4 {[%clk 0:02:35]} 17. Re1 {[%clk 0:02:55]}  Nf6 {[%clk 0:02:30]} 18. Rxe5 {[%clk 0:02:46]}  Rd8 {[%clk 0:02:22]} 19. Bc4 {[%clk 0:02:36]}  Bf5 {[%clk 0:02:08]} 20. Rhe1 {[%clk 0:02:33]}  Rd7 {[%clk 0:02:05]} 21. h3 {[%clk 0:02:23]}  h5 {[%clk 0:01:59]} 22. Be6 {[%clk 0:01:20]}  Bxe6 {[%clk 0:01:57]} 23. Rxe6 {[%clk 0:01:21]}  Kf7 {[%clk 0:01:42]} 24. Rxc6 {[%clk 0:01:20]}  Rb8 {[%clk 0:01:40]} 25. b3 {[%clk 0:01:16]}  Nd5 {[%clk 0:01:33]} 26. Nxd5 {[%clk 0:01:14]}  Rxd5 {[%clk 0:01:34]} 27. Rc7 {[%clk 0:01:13]}  Rg5 {[%clk 0:01:30]} 28. Rexe7+ {[%clk 0:01:11]}  Kg8 {[%clk 0:01:26]} 29. Re2 {[%clk 0:00:58]}  a5 {[%clk 0:01:23]} 30. a4 {[%clk 0:00:58]}  Rf8 {[%clk 0:01:22]} 31. Kb2 {[%clk 0:00:57]}  Rd5 {[%clk 0:01:18]} 32. Rb7 {[%clk 0:00:56]}  Rc8 {[%clk 0:01:17]} 33. Rb5 {[%clk 0:00:55]}  Rxb5 {[%clk 0:01:17]} 34. axb5 {[%clk 0:00:56]}  Rb8 {[%clk 0:01:17]} 35. c4 {[%clk 0:00:56]}  Kf7 {[%clk 0:01:16]} 36. Ka3 {[%clk 0:00:56]}  Kf6 {[%clk 0:01:15]} 37. Ka4 {[%clk 0:00:56]}  Ra8 {[%clk 0:01:15]} 38. b6 {[%clk 0:00:56]}  Rb8 {[%clk 0:01:14]} 39. Kxa5 {[%clk 0:00:55]}  Ra8+ {[%clk 0:01:14]} 40. Kb5 {[%clk 0:00:55]}  Rb8 {[%clk 0:01:15]} 1-0


[Site "https://www.chess.com"]

[Event "Titled Tuesday Blitz January 10 Early 2023"]
[White "Le, Tuan Minh"]
[Black "Lesbekova, Assel"]
[WhiteFideId "12401153"]
[BlackFideId "13713248"]
[WhiteElo "2542"]
[BlackElo "1772"]
[Result "0-1"]
[Round "02"]
[TimeControl "180+2"]
[Date "2023.01.10"]
[WhiteClock "0:00:02"]
[BlackClock "0:00:08"]

1. d4 {[%clk 0:03:00]}  f5 {[%clk 0:02:54]} 2. e4 {[%clk 0:03:00]}  fxe4 {[%clk 0:02:51]} 3. Nc3 {[%clk 0:03:01]}  Nf6 {[%clk 0:02:50]} 4. Bg5 {[%clk 0:03:01]}  Nc6 {[%clk 0:02:49]} 5. d5 {[%clk 0:03:01]}  Ne5 {[%clk 0:02:49]} 6. Qd4 {[%clk 0:03:02]}  Nf7 {[%clk 0:02:49]} 7. Bxf6 {[%clk 0:03:02]}  exf6 {[%clk 0:02:50]} 8. O-O-O {[%clk 0:03:02]}  Be7 {[%clk 0:02:44]} 9. Qxe4 {[%clk 0:03:01]}  d6 {[%clk 0:02:39]} 10. h4 {[%clk 0:03:00]}  O-O {[%clk 0:02:36]} 11. g4 {[%clk 0:02:49]}  f5 {[%clk 0:02:29]} 12. gxf5 {[%clk 0:02:46]}  Nh6 {[%clk 0:02:26]} 13. Nh3 {[%clk 0:02:16]}  Bxf5 {[%clk 0:02:23]} 14. Qc4 {[%clk 0:02:16]}  a6 {[%clk 0:02:14]} 15. Rg1 {[%clk 0:01:57]}  b5 {[%clk 0:02:07]} 16. Qd4 {[%clk 0:01:57]}  Bf6 {[%clk 0:02:05]} 17. Qe3 {[%clk 0:01:58]}  Ng4 {[%clk 0:02:01]} 18. Qf3 {[%clk 0:01:50]}  Qd7 {[%clk 0:01:47]} 19. Ne4 {[%clk 0:01:39]}  Nh2 {[%clk 0:01:33]} 20. Nxf6+ {[%clk 0:01:34]}  Rxf6 {[%clk 0:01:34]} 21. Qc3 {[%clk 0:01:34]}  Bg4 {[%clk 0:01:11]} 22. Rd3 {[%clk 0:01:13]}  Nxf1 {[%clk 0:00:55]} 23. Rxf1 {[%clk 0:01:12]}  Raf8 {[%clk 0:00:49]} 24. Ng5 {[%clk 0:01:05]}  Rxf2 {[%clk 0:00:46]} 25. Rxf2 {[%clk 0:01:05]}  Rxf2 {[%clk 0:00:46]} 26. Qe1 {[%clk 0:00:57]}  Re2 {[%clk 0:00:36]} 27. Qg3 {[%clk 0:00:29]}  h6 {[%clk 0:00:31]} 28. Nf3 {[%clk 0:00:24]}  Qf5 {[%clk 0:00:20]} 29. Ne1 {[%clk 0:00:09]}  Qe4 {[%clk 0:00:12]} 30. Nf3 {[%clk 0:00:03]}  Re3 {[%clk 0:00:08]} 31. Ng1 {[%clk 0:00:02]}  Rxg3 {[%clk 0:00:07]} 32. Rxg3 {[%clk 0:00:02]}  Qe1# {[%clk 0:00:08]} 0-1


[Site "https://www.chess.com"]

[Event "Titled Tuesday Blitz January 10 Early 2023"]
[White "Kozak, Adam"]
[Black "Forgacs, Attila Jr."]
[WhiteFideId "753246"]
[BlackFideId "773654"]
[WhiteElo "2572"]
[BlackElo "2264"]
[Result "1-0"]
[Round "02"]
[TimeControl "180+2"]
[Date "2023.01.10"]
[WhiteClock "0:00:50"]
[BlackClock "0:00:06"]

1. e4 {[%clk 0:03:00]}  e5 {[%clk 0:02:59]} 2. a3 {[%clk 0:02:58]}  Nf6 {[%clk 0:02:58]} 3. Nc3 {[%clk 0:02:53]}  Nc6 {[%clk 0:02:55]} 4. Bc4 {[%clk 0:02:53]}  Be7 {[%clk 0:02:52]} 5. d3 {[%clk 0:02:53]}  O-O {[%clk 0:02:51]} 6. g4 {[%clk 0:02:53]}  d6 {[%clk 0:02:46]} 7. g5 {[%clk 0:02:53]}  Ne8 {[%clk 0:02:40]} 8. h4 {[%clk 0:02:52]}  Be6 {[%clk 0:02:39]} 9. Nge2 {[%clk 0:02:53]}  Bxc4 {[%clk 0:02:38]} 10. dxc4 {[%clk 0:02:54]}  f6 {[%clk 0:02:36]} 11. Qd5+ {[%clk 0:02:52]}  Kh8 {[%clk 0:02:34]} 12. g6 {[%clk 0:02:52]}  h6 {[%clk 0:02:29]} 13. Ng3 {[%clk 0:02:52]}  Nd4 {[%clk 0:02:22]} 14. Qa5 {[%clk 0:02:44]}  Nxc2+ {[%clk 0:02:13]} 15. Ke2 {[%clk 0:02:35]}  Nxa1 {[%clk 0:02:06]} 16. Qa4 {[%clk 0:02:36]}  c6 {[%clk 0:01:55]} 17. Be3 {[%clk 0:02:34]}  Nc7 {[%clk 0:01:53]} 18. Rxa1 {[%clk 0:02:31]}  Ne6 {[%clk 0:01:53]} 19. Nf5 {[%clk 0:02:31]}  c5 {[%clk 0:01:45]} 20. Rg1 {[%clk 0:02:27]}  Qe8 {[%clk 0:01:18]} 21. Qd1 {[%clk 0:02:17]}  Nd4+ {[%clk 0:00:58]} 22. Bxd4 {[%clk 0:01:56]}  exd4 {[%clk 0:00:58]} 23. Nd5 {[%clk 0:01:55]}  Bd8 {[%clk 0:00:59]} 24. Kf3 {[%clk 0:01:42]}  Qe5 {[%clk 0:00:47]} 25. Qd2 {[%clk 0:01:32]}  Bb6 {[%clk 0:00:30]} 26. h5 {[%clk 0:01:10]}  Rae8 {[%clk 0:00:29]} 27. Rg4 {[%clk 0:01:11]}  Qh2 {[%clk 0:00:27]} 28. Qd1 {[%clk 0:00:58]}  Qxh5 {[%clk 0:00:25]} 29. Nf4 {[%clk 0:00:56]}  Qxg4+ {[%clk 0:00:05]} 30. Kxg4 {[%clk 0:00:56]}  Rxe4 {[%clk 0:00:05]} 31. Qf3 {[%clk 0:00:50]}  Rfe8 {[%clk 0:00:06]} 32. Nxd6 {[%clk 0:00:50]}  Bc7 {[%clk 0:00:05]} 33. Nxe4 {[%clk 0:00:50]}  f5+ {[%clk 0:00:05]} 34. Kxf5 {[%clk 0:00:49]}  Rf8+ {[%clk 0:00:06]} 35. Kg4 {[%clk 0:00:50]}  Rxf4+ {[%clk 0:00:06]} 36. Qxf4 {[%clk 0:00:50]}  Bxf4 {[%clk 0:00:07]} 37. Kxf4 {[%clk 0:00:51]}  Kg8 {[%clk 0:00:07]} 38. Nxc5 {[%clk 0:00:51]}  b6 {[%clk 0:00:06]} 39. Ne6 {[%clk 0:00:50]} 1-0


[Site "https://www.chess.com"]

[Event "Titled Tuesday Blitz January 10 Early 2023"]
[White "Nathan, Nitish"]
[Black "Makarian, Rudik"]
[WhiteFideId "30927870"]
[BlackFideId "44105681"]
[WhiteElo "2071"]
[BlackElo "2545"]
[Result "1/2-1/2"]
[Round "02"]
[TimeControl "180+2"]
[Date "2023.01.10"]
[WhiteClock "0:00:34"]
[BlackClock "0:01:13"]

1. d4 {[%clk 0:03:00]}  Nf6 {[%clk 0:02:59]} 2. Bf4 {[%clk 0:03:01]}  c5 {[%clk 0:02:58]} 3. c3 {[%clk 0:02:59]}  d5 {[%clk 0:02:56]} 4. e3 {[%clk 0:02:59]}  Nc6 {[%clk 0:02:55]} 5. Nd2 {[%clk 0:02:58]}  cxd4 {[%clk 0:02:51]} 6. exd4 {[%clk 0:02:58]}  Bg4 {[%clk 0:02:49]} 7. Ngf3 {[%clk 0:02:56]}  e6 {[%clk 0:02:48]} 8. Qb3 {[%clk 0:02:55]}  Qc8 {[%clk 0:02:43]} 9. Bd3 {[%clk 0:02:55]}  Be7 {[%clk 0:02:40]} 10. h3 {[%clk 0:02:53]}  Bh5 {[%clk 0:02:32]} 11. O-O {[%clk 0:02:52]}  O-O {[%clk 0:02:32]} 12. Ne5 {[%clk 0:02:52]}  Nxe5 {[%clk 0:02:28]} 13. Bxe5 {[%clk 0:02:52]}  Bg6 {[%clk 0:02:25]} 14. Bxg6 {[%clk 0:02:48]}  hxg6 {[%clk 0:02:26]} 15. Rac1 {[%clk 0:02:46]}  Qd7 {[%clk 0:02:26]} 16. Bxf6 {[%clk 0:02:40]}  gxf6 {[%clk 0:02:24]} 17. Nf3 {[%clk 0:02:28]}  b5 {[%clk 0:02:22]} 18. Rfe1 {[%clk 0:02:18]}  Kg7 {[%clk 0:02:21]} 19. Re2 {[%clk 0:02:17]}  Bd6 {[%clk 0:02:19]} 20. Rce1 {[%clk 0:02:15]}  Rfe8 {[%clk 0:02:18]} 21. Nd2 {[%clk 0:02:13]}  a5 {[%clk 0:02:17]} 22. a3 {[%clk 0:02:12]}  Rab8 {[%clk 0:02:17]} 23. Qc2 {[%clk 0:02:07]}  Rh8 {[%clk 0:02:14]} 24. Nf3 {[%clk 0:02:07]}  Rh5 {[%clk 0:02:13]} 25. Rc1 {[%clk 0:01:52]}  Rbh8 {[%clk 0:02:05]} 26. Nh2 {[%clk 0:01:31]}  Bxh2+ {[%clk 0:01:56]} 27. Kxh2 {[%clk 0:01:30]}  g5 {[%clk 0:01:56]} 28. Re3 {[%clk 0:01:29]}  g4 {[%clk 0:01:53]} 29. Rg3 {[%clk 0:01:19]}  f5 {[%clk 0:01:53]} 30. Qe2 {[%clk 0:01:14]}  Qd6 {[%clk 0:01:48]} 31. Rh1 {[%clk 0:01:01]}  Kf6 {[%clk 0:01:46]} 32. Kg1 {[%clk 0:01:01]}  gxh3 {[%clk 0:01:46]} 33. Rgxh3 {[%clk 0:01:01]}  Rxh3 {[%clk 0:01:46]} 34. Rxh3 {[%clk 0:01:01]}  Rxh3 {[%clk 0:01:46]} 35. gxh3 {[%clk 0:01:02]}  b4 {[%clk 0:01:44]} 36. axb4 {[%clk 0:01:00]}  axb4 {[%clk 0:01:45]} 37. Qh5 {[%clk 0:00:59]}  Qf4 {[%clk 0:01:36]} 38. Qh8+ {[%clk 0:00:55]}  Ke7 {[%clk 0:01:36]} 39. cxb4 {[%clk 0:00:40]}  Qc1+ {[%clk 0:01:30]} 40. Kg2 {[%clk 0:00:39]}  Qxb2 {[%clk 0:01:26]} 41. Qe5 {[%clk 0:00:38]}  Qxb4 {[%clk 0:01:24]} 42. Qc7+ {[%clk 0:00:38]}  Kf6 {[%clk 0:01:17]} 43. Qe5+ {[%clk 0:00:36]}  Kg6 {[%clk 0:01:16]} 44. Qg3+ {[%clk 0:00:36]}  Kh7 {[%clk 0:01:12]} 45. Qh4+ {[%clk 0:00:36]}  Kg8 {[%clk 0:01:12]} 46. Qg5+ {[%clk 0:00:36]}  Kf8 {[%clk 0:01:11]} 47. Qd8+ {[%clk 0:00:34]}  Kg7 {[%clk 0:01:11]} 48. Qg5+ {[%clk 0:00:34]}  Kh7 {[%clk 0:01:12]} 49. Qh5+ {[%clk 0:00:34]}  Kg7 {[%clk 0:01:12]} 50. Qg5+ {[%clk 0:00:34]}  Kh7 {[%clk 0:01:12]} 51. Qh5+ {[%clk 0:00:34]}  Kg7 {[%clk 0:01:13]} 52. Qg5+ {[%clk 0:00:34]} 1/2-1/2


[Site "https://www.chess.com"]